[Event "Carnaval"]
[Site "Quebec CAN"]
[Date "2025.02.23"]
[Round "5"]
[White "Zhang, Yitian"]
[Black "Vaillant, Charles-Etienne"]
[Result "1-0"]
[ECO "D48"]
[WhiteElo "1784"]
[BlackElo "1906"]
[WhiteFideId "-1"]
[WhiteFideId "-1"]
[PlyCount "89"]
[GameId "2151043325465552"]
[EventDate "2025.02.21"]
[EventType "swiss"]
[EventRounds "5"]
[EventCountry "CAN"]
[TimeControl "5400+30"]

1. d4 d5 2. c4 c6 3. e3 Nf6 4. Nc3 e6 5. Nf3 Nbd7 6. Bd3 dxc4 7. Bxc4 b5 8. Bd3 a6 9. O-O c5 10. Bd2 Bb7 11. dxc5 Nxc5 12. Be2 Bd6 13. a3 O-O 14. Rc1 Qb8 15. h3 Rd8 16. b4 Nce4 17. Qc2 Ra7 18. Nxe4 Bxe4 19. Qb2 Qa8 20. Bc3 Be7 21. Bd4 Rad7 22. Ne5 Rxd4 23. exd4 Bxg2 24. Rfd1 Bxh3 25. Bf3 Nd5 26. Nc6 Re8 27. Qb3 Bg5 28. Bxd5 exd5 29. Qxh3 Bxc1 30. Rxc1 Qb7 31. Ne5 f6 32. Qd7 Qxd7 33. Nxd7 Re2 34. Rc6 Rd2 35. Rxa6 Rxd4 36. Rb6 Rd1+ 37. Kg2 d4 38. Rxb5 d3 39. Rd5 Kf7 40. b5 Ke6 41. Rxd3 Rb1 42. Rb3 Ra1 43. b6 Kxd7 44. b7 Rxa3 45. b8=Q 1-0

[Event "Germain Laplante op"]
[Site "Chambly CAN"]
[Date "2025.05.17"]
[Round "3.1"]
[White "Rodrigue-Lemieux, Shawn"]
[Black "Duong, Thanh Nha"]
[Result "1-0"]
[ECO "A53"]
[WhiteElo "2575"]
[BlackElo "2330"]
[WhiteFideId "-1"]
[WhiteFideId "-1"]
[PlyCount "93"]
[GameId "2180113068307897"]
[EventDate "2025.05.16"]
[EventType "swiss"]
[EventRounds "5"]
[EventCountry "CAN"]
[TimeControl "90+30"]

1. c4 {[%emt 0:00:00]} e5 {[%emt 0:00:00]} 2. g3 {[%emt 0:00:00]} Nf6 {[%emt 0:00:00]} 3. Bg2 {[%emt 0:00:00]} c6 {[%emt 0:00:00]} 4. d4 {[%emt 0:00:00]} d6 {[%emt 0:00:00]} 5. Nc3 {[%emt 0:00:00]} Be7 {[%emt 0:00:00]} 6. e3 {[%emt 0:00:00]} O-O {[%emt 0:00:00]} 7. Nge2 {[%emt 0:00:00]} Nbd7 {[%emt 0:00:00]} 8. O-O {[%emt 0:00:00]} Re8 {[%emt 0:00:00]} 9. b3 {[%emt 0:00:00]} Nf8 {[%emt 0:00:00]} 10. Bb2 {[%emt 0:00:00]} Ng6 {[%emt 0:00:00]} 11. Qc2 {[%emt 0:00:00]} Bf8 {[%emt 0:00:00]} 12. Rad1 {[%emt 0:00:00]} Qa5 {[%emt 0:00:00]} 13. d5 {[%emt 0:00:00]} c5 {[%emt 0:00:00]} 14. h3 {[%emt 0:00:00]} a6 {[%emt 0:00:00]} 15. a4 {[%emt 0:00:00]} Bd7 {[%emt 0:00:00]} 16. Ra1 {[%emt 0:00:00]} Reb8 {[%emt 0:00:00]} 17. Ra3 {[%emt 0:00:00]} Be7 {[%emt 0:00:00]} 18. Nc1 {[%emt 0:00:00]} Qd8 {[%emt 0:00:00]} 19. a5 {[%emt 0:00:00]} Qc8 {[%emt 0:00:00]} 20. Kh2 {[%emt 0:00:00]} Bd8 {[%emt 0:00:00]} 21. e4 {[%emt 0:00:00]} Bc7 {[%emt 0:00:00]} 22. Nd3 {[%emt 0:00:00]} Qd8 {[%emt 0:00:00]} 23. Rfa1 {[%emt 0:00:00]} h5 {[%emt 0:00:00]} 24. Qe2 {[%emt 0:00:00]} h4 {[%emt 0:00:00]} 25. Bc1 {[%emt 0:00:00]} Nh7 {[%emt 0:00:00]} 26. Bd2 {[%emt 0:00:00]} Qe7 {[%emt 0:00:00]} 27. Qh5 {[%emt 0:00:00]} Rf8 {[%emt 0:00:00]} 28. Nd1 {[%emt 0:00:00]} Qd8 {[%emt 0:00:00]} 29. Ne3 {[%emt 0:00:00]} Nf6 {[%emt 0:00:00]} 30. Qe2 {[%emt 0:00:00]} Qc8 {[%emt 0:00:00]} 31. b4 {[%emt 0:00:00]} b6 {[%emt 0:00:00]} 32. axb6 {[%emt 0:00:00]} Bxb6 {[%emt 0:00:00]} 33. bxc5 {[%emt 0:00:00]} Bxc5 {[%emt 0:00:00]} 34. Nxc5 {[%emt 0:00:00]} hxg3+ {[%emt 0:00:00]} 35. fxg3 {[%emt 0:00:00]} dxc5 {[%emt 0:00:00]} 36. Bc3 {[%emt 0:00:00]} Ne8 {[%emt 0:00:09]} 37. Qa2 {[%emt 0:00:00]} Nc7 {[%emt 0:02:49]} 38. Ra5 {[%emt 0:00:00]} f5 {[%emt 0:03:18]} 39. exf5 {[%emt 0:00:00]} Bxf5 {[%emt 0:00:14]} 40. Rxc5 {[%emt 0:00:00]} Qd7 {[%emt 0:00:34]} 41. Qa4 {[%emt 0:00:00]} Qe7 {[%emt 0:06:34]} 42. Qc6 {[%emt 0:00:00]} Bd7 {[%emt 0:00:00]} 43. d6 {[%emt 0:00:10]} Qg5 {[%emt 0:00:25]} 44. Qxd7 {[%emt 0:00:10]} Rad8 {[%emt 0:04:16]} 45. Qg4 {[%emt 0:01:30]} Qxe3 {[%emt 0:00:28]} 46. dxc7 {[%emt 0:00:12]} Rc8 {[%emt 0:00:46]} 47. Bd5+ {[%emt 0:00:15]} 1-0

[Event "Germain Laplante op"]
[Site "Chambly CAN"]
[Date "2025.05.17"]
[Round "3.2"]
[White "Tanaka, Tyler"]
[Black "Migot, Tangi"]
[Result "1-0"]
[ECO "E07"]
[WhiteElo "2282"]
[BlackElo "2425"]
[WhiteFideId "-1"]
[WhiteFideId "-1"]
[PlyCount "91"]
[GameId "2180113068266936"]
[EventDate "2025.05.16"]
[EventType "swiss"]
[EventRounds "5"]
[EventCountry "CAN"]
[TimeControl "90+30"]

1. Nf3 {[%emt 0:00:00]} d5 {[%emt 0:00:00]} 2. g3 {[%emt 0:00:00]} Nd7 {[%emt 0:00:00]} 3. d4 {[%emt 0:00:00]} Ngf6 {[%emt 0:00:00]} 4. Bg2 {[%emt 0:00:00]} e6 {[%emt 0:00:00]} 5. O-O {[%emt 0:00:00]} Be7 {[%emt 0:00:00]} 6. c4 {[%emt 0:00:00]} O-O {[%emt 0:00:00]} 7. Nc3 {[%emt 0:00:00]} dxc4 {[%emt 0:00:00]} 8. e4 {[%emt 0:00:00]} Rb8 {[%emt 0:00:00]} 9. a4 {[%emt 0:00:00]} a6 {[%emt 0:00:00]} 10. a5 {[%emt 0:00:00]} b5 {[%emt 0:00:00]} 11. axb6 {[%emt 0:00:00]} Nxb6 {[%emt 0:00:00]} 12. Qe2 {[%emt 0:00:00]} Bb7 {[%emt 0:00:00]} 13. Rd1 {[%emt 0:00:00]} Bb4 {[%emt 0:00:00]} 14. Ne5 {[%emt 0:00:00]} a5 {[%emt 0:00:00]} 15. Bg5 {[%emt 0:00:00]} h6 {[%emt 0:00:00]} 16. Bxf6 {[%emt 0:00:00]} Qxf6 {[%emt 0:00:00]} 17. Na4 {[%emt 0:00:00]} Rfd8 {[%emt 0:00:00]} 18. Nxb6 {[%emt 0:00:00]} cxb6 {[%emt 0:00:00]} 19. Qxc4 {[%emt 0:00:00]} Bd6 {[%emt 0:00:00]} 20. Nc6 {[%emt 0:00:00]} Bxc6 {[%emt 0:00:00]} 21. Qxc6 {[%emt 0:00:00]} e5 {[%emt 0:00:00]} 22. d5 {[%emt 0:00:00]} Rdc8 {[%emt 0:00:00]} 23. Qa4 {[%emt 0:00:00]} Bc5 {[%emt 0:02:18]} 24. Rd2 {[%emt 0:00:00]} Bb4 {[%emt 0:01:16]} 25. Rc2 {[%emt 0:00:58]} b5 {[%emt 0:00:13]} 26. Qb3 {[%emt 0:00:44]} Qb6 {[%emt 0:00:37]} 27. Bh3 {[%emt 0:01:07]} Rxc2 {[%emt 0:03:28]} 28. Qxc2 {[%emt 0:00:01]} Bc5 {[%emt 0:00:14]} 29. Rc1 {[%emt 0:03:45]} Bd4 {[%emt 0:00:53]} 30. Bd7 {[%emt 0:01:46]} Rd8 {[%emt 0:02:17]} 31. Bc6 {[%emt 0:00:36]} a4 {[%emt 0:01:17]} 32. Kg2 {[%emt 0:00:14]} Qa5 {[%emt 0:00:40]} 33. Rd1 {[%emt 0:06:39]} Qb4 {[%emt 0:00:40]} 34. Rd2 {[%emt 0:00:01]} g6 {[%emt 0:01:40]} 35. Re2 {[%emt 0:00:45]} Kg7 {[%emt 0:00:50]} 36. Qd2 {[%emt 0:00:29]} Qc4 {[%emt 0:02:08]} 37. Qc2 {[%emt 0:00:22]} Qb4 {[%emt 0:00:37]} 38. Qd2 {[%emt 0:00:01]} Qc5 {[%emt 0:00:51]} 39. Qc2 {[%emt 0:00:23]} Qb6 {[%emt 0:00:39]} 40. Qd3 {[%emt 0:01:44]} Rb8 {[%emt 0:00:25]} 41. Rc2 {[%emt 0:00:06]} Qa5 {[%emt 0:00:45]} 42. d6 {[%emt 0:00:31]} b4 {[%emt 0:00:19]} 43. Bd5 {[%emt 0:00:31]} Qb6 {[%emt 0:00:45]} 44. Qf3 {[%emt 0:01:51]} Rf8 {[%emt 0:00:36]} 45. Rc7 {[%emt 0:00:02]} Qxd6 {[%emt 0:00:31]} 46. Rxf7+ {[%emt 0:00:02]} 1-0

[Event "Germain Laplante op"]
[Site "Chambly CAN"]
[Date "2025.05.18"]
[Round "4"]
[White "Duong, Thanh Nha"]
[Black "Masse, Hugues"]
[Result "1/2-1/2"]
[ECO "D04"]
[WhiteElo "2330"]
[BlackElo "2211"]
[WhiteFideId "-1"]
[WhiteFideId "-1"]
[PlyCount "119"]
[GameId "2180113068324283"]
[EventDate "2025.05.16"]
[EventType "swiss"]
[EventRounds "5"]
[EventCountry "CAN"]
[TimeControl "90+30"]

1. Nf3 Nf6 2. b3 c5 3. Bb2 Nc6 4. e3 g6 5. d4 cxd4 6. exd4 d5 7. Bd3 Bg7 8. a3 O-O 9. O-O Bf5 10. Bxf5 gxf5 11. Nbd2 e6 12. Qe2 Kh8 13. Rfd1 Ne4 14. Ne5 Qc7 15. Nxc6 Qxc6 16. c4 Rac8 17. Nxe4 fxe4 18. Rac1 f5 19. cxd5 Qxd5 20. Rc5 Qxb3 21. Rb5 Qc2 22. Qxc2 Rxc2 23. Rxb7 Rfc8 24. g3 R2c7 25. Rb4 Rd7 26. Bc1 Rxd4 27. Rdxd4 Bxd4 28. Rxd4 Rxc1+ 29. Kg2 Rc7 30. Rd6 Re7 31. g4 Kg7 32. Kg3 Kf6 33. Kf4 fxg4 34. Ra6 Rb7 35. Kxe4 h5 36. Ra5 Kg6 37. f3 gxf3 38. Kxf3 Kf6 39. Kf4 Rb3 40. Rxa7 Rh3 41. a4 Rxh2 42. a5 Rh4+ 43. Kf3 Rh3+ 44. Kf4 Rh4+ 45. Kf3 Ra4 46. a6 Ke5 47. Rh7 Ra3+ 48. Ke2 Ke4 49. Rxh5 Ra2+ 50. Ke1 Rxa6 51. Rh4+ Ke3 52. Rh3+ Kf4 53. Rh4+ Kg3 54. Rb4 e5 55. Ke2 Ra3 56. Re4 Ra5 57. Ke3 Ra1 58. Rxe5 Re1+ 59. Kd4 Rxe5 60. Kxe5 1/2-1/2

[Event "Germain Laplante op"]
[Site "Chambly CAN"]
[Date "2025.05.18"]
[Round "4.1"]
[White "Tanaka, Tyler"]
[Black "Rodrigue-Lemieux, Shawn"]
[Result "0-1"]
[ECO "B12"]
[WhiteElo "2282"]
[BlackElo "2575"]
[WhiteFideId "-1"]
[WhiteFideId "-1"]
[PlyCount "88"]
[GameId "2180113068348863"]
[EventDate "2025.05.16"]
[EventType "swiss"]
[EventRounds "5"]
[EventCountry "CAN"]
[TimeControl "90+30"]

1. e4 {[%emt 0:00:00]} c6 {[%emt 0:00:00]} 2. d4 {[%emt 0:00:00]} d5 {[%emt 0:00:00]} 3. e5 {[%emt 0:00:00]} c5 {[%emt 0:00:00]} 4. c3 {[%emt 0:00:00]} Nc6 {[%emt 0:00:00]} 5. Be2 {[%emt 0:00:00]} cxd4 {[%emt 0:00:00]} 6. cxd4 {[%emt 0:00:00]} Bf5 {[%emt 0:00:00]} 7. Nf3 {[%emt 0:00:00]} e6 {[%emt 0:00:00]} 8. O-O {[%emt 0:00:00]} Nge7 {[%emt 0:00:00]} 9. Nc3 {[%emt 0:00:00]} Bg4 {[%emt 0:00:00]} 10. Nh4 {[%emt 0:00:00]} Bxe2 {[%emt 0:00:00]} 11. Nxe2 {[%emt 0:00:00]} Ng6 {[%emt 0:00:00]} 12. Nf3 {[%emt 0:00:00]} Be7 {[%emt 0:00:00]} 13. g3 {[%emt 0:00:00]} O-O {[%emt 0:00:00]} 14. Kg2 {[%emt 0:00:00]} f6 {[%emt 0:00:00]} 15. exf6 {[%emt 0:00:00]} Bxf6 {[%emt 0:00:00]} 16. Be3 {[%emt 0:00:00]} e5 {[%emt 0:00:00]} 17. dxe5 {[%emt 0:00:00]} Ngxe5 {[%emt 0:00:00]} 18. Nxe5 {[%emt 0:00:00]} Bxe5 {[%emt 0:00:00]} 19. Qb3 {[%emt 0:00:00]} Na5 {[%emt 0:00:00]} 20. Qb5 {[%emt 0:00:00]} a6 {[%emt 0:00:00]} 21. Qb6 {[%emt 0:00:00]} Nc4 {[%emt 0:00:00]} 22. Qe6+ {[%emt 0:00:00]} Kh8 {[%emt 0:00:00]} 23. Bd4 {[%emt 0:00:00]} Re8 {[%emt 0:00:00]} 24. Qf5 {[%emt 0:00:00]} Bxd4 {[%emt 0:00:00]} 25. Nxd4 {[%emt 0:00:00]} Qb6 {[%emt 0:00:00]} 26. Rfd1 {[%emt 0:05:13]} Qxb2 {[%emt 0:00:00]} 27. Kg1 {[%emt 0:00:07]} b5 {[%emt 0:06:55]} 28. Qc2 {[%emt 0:03:11]} Qxc2 {[%emt 0:03:12]} 29. Nxc2 {[%emt 0:00:03]} Rad8 {[%emt 0:00:13]} 30. Nd4 {[%emt 0:04:25]} Kg8 {[%emt 0:00:31]} 31. Rd3 {[%emt 0:00:48]} g6 {[%emt 0:01:00]} 32. Kg2 {[%emt 0:00:45]} Rd6 {[%emt 0:00:15]} 33. h4 {[%emt 0:00:18]} Re4 {[%emt 0:00:29]} 34. Rh1 {[%emt 0:01:19]} b4 {[%emt 0:01:55]} 35. Rc1 {[%emt 0:00:33]} Rf6 {[%emt 0:01:02]} 36. Rc2 {[%emt 0:00:33]} Rd6 {[%emt 0:02:18]} 37. Nf3 {[%emt 0:01:29]} h6 {[%emt 0:01:03]} 38. Nd2 {[%emt 0:01:20]} Nxd2 {[%emt 0:01:06]} 39. Rcxd2 {[%emt 0:00:01]} Re5 {[%emt 0:00:26]} 40. Rd4 {[%emt 0:00:07]} a5 {[%emt 0:00:13]} 41. Kf3 {[%emt 0:01:44]} Kf7 {[%emt 0:00:09]} 42. R2d3 {[%emt 0:00:31]} Ke6 {[%emt 0:00:38]} 43. a3 {[%emt 0:00:06]} Re4 {[%emt 0:00:39]} 44. axb4 {[%emt 0:00:04]} Ke5 {[%emt 0:00:19]} 0-1

[Event "Germain Laplante op"]
[Site "Chambly CAN"]
[Date "2025.05.18"]
[Round "4.2"]
[White "Latorre, Vincent"]
[Black "Migot, Tangi"]
[Result "1/2-1/2"]
[ECO "C70"]
[WhiteElo "2368"]
[BlackElo "2425"]
[WhiteFideId "-1"]
[WhiteFideId "-1"]
[PlyCount "86"]
[GameId "2180113068357056"]
[EventDate "2025.05.16"]
[EventType "swiss"]
[EventRounds "5"]
[EventCountry "CAN"]
[TimeControl "90+30"]

1. e4 {[%emt 0:00:00]} e5 {[%emt 0:00:00]} 2. Nf3 {[%emt 0:00:00]} Nc6 {[%emt 0:00:00]} 3. Bb5 {[%emt 0:00:00]} a6 {[%emt 0:00:00]} 4. Ba4 {[%emt 0:00:00]} Bc5 {[%emt 0:00:00]} 5. O-O {[%emt 0:00:00]} Nge7 {[%emt 0:00:00]} 6. Nxe5 {[%emt 0:00:00]} Nxe5 {[%emt 0:00:00]} 7. d4 {[%emt 0:00:00]} b5 {[%emt 0:00:00]} 8. Bb3 {[%emt 0:00:00]} Bxd4 {[%emt 0:00:00]} 9. Qxd4 {[%emt 0:00:00]} d6 {[%emt 0:00:00]} 10. c3 {[%emt 0:00:00]} c5 {[%emt 0:00:00]} 11. Qd1 {[%emt 0:00:00]} O-O {[%emt 0:00:00]} 12. Bf4 {[%emt 0:00:00]} Bb7 {[%emt 0:00:00]} 13. Bc2 {[%emt 0:00:00]} Qb6 {[%emt 0:00:00]} 14. Bg3 {[%emt 0:00:00]} Qc6 {[%emt 0:00:00]} 15. Nd2 {[%emt 0:00:00]} N5g6 {[%emt 0:00:00]} 16. Nb3 {[%emt 0:00:00]} Rad8 {[%emt 0:00:00]} 17. Na5 {[%emt 0:00:00]} Qb6 {[%emt 0:00:00]} 18. Nxb7 {[%emt 0:00:00]} Qxb7 {[%emt 0:00:00]} 19. Qg4 {[%emt 0:00:00]} d5 {[%emt 0:00:00]} 20. h4 {[%emt 0:00:00]} dxe4 {[%emt 0:00:00]} 21. Bxe4 {[%emt 0:00:00]} Qb6 {[%emt 0:00:00]} 22. h5 {[%emt 0:05:12]} f5 {[%emt 0:00:00]} 23. Bxf5 {[%emt 0:00:00]} Nxf5 {[%emt 0:00:00]} 24. hxg6 {[%emt 0:00:00]} Qxg6 {[%emt 0:00:00]} 25. Qxg6 {[%emt 0:00:00]} hxg6 {[%emt 0:00:00]} 26. Bf4 {[%emt 0:00:00]} Rfe8 {[%emt 0:00:00]} 27. Rfe1 {[%emt 0:00:00]} Kf7 {[%emt 0:00:00]} 28. Bg5 {[%emt 0:03:08]} Rxe1+ {[%emt 0:02:21]} 29. Rxe1 {[%emt 0:00:07]} Re8 {[%emt 0:00:03]} 30. Rd1 {[%emt 0:00:32]} Re2 {[%emt 0:00:11]} 31. g4 {[%emt 0:02:50]} Nh6 {[%emt 0:00:36]} 32. Rd7+ {[%emt 0:00:21]} Kf8 {[%emt 0:00:27]} 33. Be3 {[%emt 0:04:31]} Rxb2 {[%emt 0:02:45]} 34. Bxc5+ {[%emt 0:00:20]} Kg8 {[%emt 0:01:49]} 35. Bd4 {[%emt 0:00:56]} Nf7 {[%emt 0:00:07]} 36. a3 {[%emt 0:01:25]} Rb3 {[%emt 0:00:31]} 37. Ra7 {[%emt 0:00:15]} Rxa3 {[%emt 0:00:10]} 38. Ra8+ {[%emt 0:00:05]} Kh7 {[%emt 0:00:04]} 39. Ra7 {[%emt 0:00:05]} Kg8 {[%emt 0:00:08]} 40. Ra8+ {[%emt 0:00:06]} Kh7 {[%emt 0:00:05]} 41. Ra7 {[%emt 0:00:06]} Kg8 {[%emt 0:01:09]} 42. Kg2 {[%emt 0:00:43]} a5 {[%emt 0:00:06]} 43. f4 {[%emt 0:00:05]} b4 {[%emt 0:00:29]} 1/2-1/2

[Event "Germain Laplante op"]
[Site "Chambly CAN"]
[Date "2025.05.18"]
[Round "5.1"]
[White "Rodrigue-Lemieux, Shawn"]
[Black "Chiku-Ratte, Olivier-Kenta"]
[Result "1-0"]
[ECO "A87"]
[WhiteElo "2575"]
[BlackElo "2403"]
[WhiteFideId "-1"]
[WhiteFideId "-1"]
[PlyCount "49"]
[GameId "2180113068340669"]
[EventDate "2025.05.16"]
[EventType "swiss"]
[EventRounds "5"]
[EventCountry "CAN"]
[TimeControl "90+30"]

1. c4 {[%emt 0:00:00]} g6 {[%emt 0:00:00]} 2. g3 {[%emt 0:00:00]} Bg7 {[%emt 0:00:00]} 3. Bg2 {[%emt 0:00:00]} f5 {[%emt 0:00:00]} 4. d4 {[%emt 0:00:00]} Nf6 {[%emt 0:00:00]} 5. Nc3 {[%emt 0:00:00]} d6 {[%emt 0:00:00]} 6. Nf3 {[%emt 0:00:00]} O-O {[%emt 0:00:00]} 7. O-O {[%emt 0:00:00]} Ne4 {[%emt 0:00:00]} 8. Nxe4 {[%emt 0:00:00]} fxe4 {[%emt 0:00:00]} 9. Ng5 {[%emt 0:00:00]} e6 {[%emt 0:00:00]} 10. Nxe4 {[%emt 0:00:00]} d5 {[%emt 0:00:00]} 11. Bg5 {[%emt 0:00:00]} Qd7 {[%emt 0:00:00]} 12. cxd5 {[%emt 0:00:00]} exd5 {[%emt 0:00:00]} 13. Nc3 {[%emt 0:00:00]} c6 {[%emt 0:00:00]} 14. Qd2 {[%emt 0:00:00]} Qf7 {[%emt 0:00:00]} 15. e4 {[%emt 0:00:00]} dxe4 {[%emt 0:03:17]} 16. Nxe4 {[%emt 0:00:00]} Be6 {[%emt 0:01:09]} 17. Rfe1 {[%emt 0:00:00]} Bd5 {[%emt 0:03:38]} 18. Nd6 {[%emt 0:00:00]} Qd7 {[%emt 0:00:22]} 19. Be7 {[%emt 0:00:00]} Rf3 {[%emt 0:02:02]} 20. Bxf3 {[%emt 0:00:00]} Bxf3 {[%emt 0:00:05]} 21. Qf4 {[%emt 0:00:00]} Bd5 {[%emt 0:00:52]} 22. Bf6 {[%emt 0:00:00]} Bf8 {[%emt 0:00:50]} 23. Re8 {[%emt 0:00:00]} Qh3 {[%emt 0:00:36]} 24. f3 {[%emt 0:00:00]} Bf7 {[%emt 0:00:34]} 25. Be7 {[%emt 0:00:00]} 1-0

[Event "Laval op"]
[Site "Laval CAN"]
[Date "2025.06.21"]
[Round "2.2"]
[White "Chiku-Ratte, Olivier-Kenta"]
[Black "Mok, Yuen Tak"]
[Result "1-0"]
[ECO "D30"]
[WhiteElo "2303"]
[BlackElo "1934"]
[WhiteFideId "-1"]
[WhiteFideId "-1"]
[PlyCount "35"]
[GameId "2191178278952960"]
[EventDate "2025.06.19"]
[EventType "swiss"]
[EventRounds "5"]
[EventCountry "CAN"]
[TimeControl "90+30"]

1. d4 d5 2. c4 e6 3. Nf3 c6 4. Nbd2 f5 5. g3 Nd7 6. Bg2 Bd6 7. b3 Ngf6 8. Bb2 Ne4 9. Qc1 Qe7 10. O-O Qf6 11. Ne1 O-O 12. Nd3 g5 13. Nf3 h5 14. Nfe5 g4 15. f3 gxf3 16. exf3 Ng5 17. Qf4 Qh6 {[%emt 0:00:00]} 18. Bc1 {[%emt 0:00:00]} 1-0

[Event "Laval op"]
[Site "Laval CAN"]
[Date "2025.06.21"]
[Round "2.3"]
[White "Pomerantz, Daniel"]
[Black "Zheng, Richard"]
[Result "0-1"]
[ECO "B15"]
[WhiteElo "1941"]
[BlackElo "2302"]
[WhiteFideId "-1"]
[WhiteFideId "-1"]
[PlyCount "58"]
[GameId "2191178278961152"]
[EventDate "2025.06.19"]
[EventType "swiss"]
[EventRounds "5"]
[EventCountry "CAN"]
[TimeControl "90+30"]

1. e4 c6 2. d4 d5 3. Nd2 dxe4 4. Nxe4 Nf6 5. Nxf6+ exf6 6. c3 Bd6 7. Bd3 O-O 8. Qc2 Re8+ 9. Ne2 h5 10. Be3 Nd7 11. c4 Nf8 12. O-O-O Be6 13. Kb1 Qa5 14. a3 Rac8 15. Nc3 b5 16. c5 Bb8 17. Be4 b4 18. axb4 Qxb4 19. d5 cxd5 20. Bxd5 Be5 21. Bxe6 Nxe6 22. Nd5 Qa5 23. Qd2 Qa4 24. Nc3 Qb4 25. Rc1 Nxc5 26. Bxc5 Rxc5 27. Rhe1 Rec8 28. Ne4 Rxc1+ 29. Rxc1 {[%emt 0:00:00]} Qxe4+ {[%emt 0:00:00]} 0-1

[Event "Laval op"]
[Site "Laval CAN"]
[Date "2025.06.21"]
[Round "2.4"]
[White "Dukic, Zachary"]
[Black "Hebrard, Emmanuel"]
[Result "1-0"]
[ECO "C00"]
[WhiteElo "2191"]
[BlackElo "1879"]
[WhiteFideId "-1"]
[WhiteFideId "-1"]
[PlyCount "67"]
[GameId "2191178278969344"]
[EventDate "2025.06.19"]
[EventType "swiss"]
[EventRounds "5"]
[EventCountry "CAN"]
[TimeControl "90+30"]

1. Nf3 Nf6 2. g3 d5 3. Bg2 e6 4. O-O Be7 5. d3 O-O 6. Nbd2 c5 7. e4 Nc6 8. Re1 Rb8 9. e5 Nd7 10. Nf1 b5 11. h4 Qc7 12. Bf4 Rd8 13. h5 h6 14. Qd2 Nb6 15. g4 b4 16. g5 hxg5 17. Nxg5 Bf8 18. Nf3 Na4 19. b3 Nc3 20. h6 g6 21. Bg5 Be7 22. N1h2 Bxg5 23. Qxg5 Qe7 24. Qf4 Ba6 25. Ng4 Rbc8 26. a3 bxa3 27. Rxa3 Nb4 28. Bf1 Rc6 29. Rea1 Rb8 30. Ng5 Rb7 31. h7+ Kh8 32. Nh6 f5 33. exf6 Qc7 {[%emt 0:06:07]} 34. Qf3 {[%emt 0:02:51]} 1-0

[Event "Laval op"]
[Site "Laval CAN"]
[Date "2025.06.21"]
[Round "2.5"]
[White "Batorshyn, Ilia"]
[Black "Turcotte, Jonathan"]
[Result "1/2-1/2"]
[ECO "D14"]
[WhiteElo "2183"]
[BlackElo "1930"]
[WhiteFideId "-1"]
[WhiteFideId "-1"]
[PlyCount "85"]
[GameId "2191178278989824"]
[EventDate "2025.06.19"]
[EventType "swiss"]
[EventRounds "5"]
[EventCountry "CAN"]
[TimeControl "90+30"]

1. d4 d5 2. c4 c6 3. cxd5 cxd5 4. Nf3 Nc6 5. Nc3 Nf6 6. Bf4 Bf5 7. Qb3 Na5 8. Qa4+ Bd7 9. Qc2 Rc8 10. e3 e6 11. Bd3 Bb4 12. O-O Nc4 13. Rfc1 O-O 14. Ne5 Bxc3 15. bxc3 Bb5 16. a4 Nxe5 17. axb5 Nxd3 18. Qxd3 Qb6 19. Bg5 Ne4 20. Be7 Rfe8 21. Bb4 Rc4 22. f3 Nf6 23. Bc5 Qxb5 24. Rcb1 Qc6 25. Rxa7 b5 26. Ra5 Rb8 27. Rb3 Nd7 28. Ba3 f5 29. Qd2 Ra4 30. Rxa4 bxa4 31. Rxb8+ Nxb8 32. Qb2 Nd7 33. Qb4 h6 34. h4 Kh7 35. Kf2 Nb6 36. Qc5 Qb7 37. Qb5 Qc7 38. Bc5 Nd7 39. Bb4 Nf6 40. Qxa4 Nh5 41. Kf1 Qh2 42. Be7 Ng3+ {[%emt 0:00:00]} 43. Kf2 {[%emt 0:19:40]} 1/2-1/2

[Event "Morphy"]
[Site "Gatineau CAN"]
[Date "2025.01.14"]
[Round "1"]
[White "Thompson, Francis"]
[Black "Berthiaume, Serge"]
[Result "1-0"]
[ECO "D02"]
[WhiteElo "1777"]
[BlackElo "1320"]
[WhiteFideId "-1"]
[WhiteFideId "-1"]
[PlyCount "49"]
[GameId "2135377793529588"]
[EventDate "2025.01.14"]
[EventType "swiss"]
[EventRounds "7"]
[EventCountry "CAN"]
[TimeControl "1"]

1. Nf3 d5 2. g3 Nf6 3. Bg2 c5 4. O-O Nc6 5. d4 cxd4 6. Nxd4 e5 7. Nxc6 bxc6 8. c4 h6 9. Nc3 Bb4 10. Nxd5 Nxd5 11. cxd5 c5 12. a3 Ba5 13. b4 Bb6 14. Bb2 cxb4 15. Bxe5 O-O 16. d6 Bd7 17. axb4 Rb8 18. Bd4 Bb5 19. Bc5 Re8 20. Re1 Re5 21. Rc1 Bxc5 22. bxc5 Rc8 23. c6 Re6 24. c7 Qf6 25. d7 1-0

[Event "Morphy"]
[Site "Gatineau CAN"]
[Date "2025.01.21"]
[Round "2"]
[White "Chenier, Raphael"]
[Black "Latreille, Etienne"]
[Result "0-1"]
[ECO "B35"]
[WhiteElo "1723"]
[BlackElo "2075"]
[WhiteFideId "-1"]
[WhiteFideId "-1"]
[PlyCount "54"]
[GameId "2138721250798946"]
[EventDate "2025.01.14"]
[EventType "swiss"]
[EventRounds "7"]
[EventCountry "CAN"]
[TimeControl "90+30"]

1. e4 c5 2. Nf3 Nc6 3. d4 cxd4 4. Nxd4 g6 5. Nc3 Bg7 6. Be3 Nf6 7. Bc4 O-O 8. f3 Qb6 9. Qd2 Nxe4 10. fxe4 Bxd4 11. Bxd4 Qxd4 12. Qxd4 Nxd4 13. O-O-O Nc6 14. Rhf1 d6 15. Nd5 Be6 16. Bb3 Rac8 17. Rf2 Kg7 18. Kd2 b5 19. Ke3 Ne5 20. h3 Rfe8 21. c3 Rc5 22. Rfd2 a5 23. a3 Rb8 24. Rd4 Bxd5 25. Rxd5 Rc7 26. R1d4 Nd7 27. g4 Nf6 0-1

[Event "Morphy"]
[Site "Gatineau CAN"]
[Date "2025.01.28"]
[Round "3"]
[White "Latreille, Etienne"]
[Black "Azar, Sebastien"]
[Result "1-0"]
[ECO "B51"]
[WhiteElo "2075"]
[BlackElo "2180"]
[WhiteFideId "-1"]
[WhiteFideId "-1"]
[PlyCount "107"]
[GameId "2139506882707522"]
[EventDate "2025.01.14"]
[EventType "swiss"]
[EventRounds "7"]
[EventCountry "CAN"]
[TimeControl "90+30"]

1. e4 c5 2. Nf3 d6 3. Bb5+ Nd7 4. a4 Ngf6 5. Nc3 g6 6. O-O a6 7. Be2 Bg7 8. a5 O-O 9. d4 cxd4 10. Nxd4 Nc5 11. Bf3 e5 12. Nb3 Nxb3 13. cxb3 Be6 14. Be3 Qe7 15. Bg5 Rfc8 16. Na4 Rc6 17. Nb6 Rb8 18. Qd3 Qc7 19. Rfd1 Nd7 20. Nd5 Bxd5 21. Qxd5 Bf8 22. Bd2 b6 23. b4 b5 24. Bc3 Rc4 25. Be2 Nf6 26. Bxc4 Nxd5 27. Bxd5 h5 28. Rd3 Bh6 29. Rad1 Rd8 30. Bb3 Qe7 31. Rd5 Bg5 32. g3 h4 33. R1d3 Qc7 34. f4 Qa7+ 35. Kf1 hxg3 36. hxg3 Be7 37. fxe5 Qd7 38. Bd1 Qh3+ 39. Kg1 Kh7 40. g4 Qh6 41. Kg2 Bh4 42. Rxd6 Rxd6 43. exd6 Qf4 44. Rh3 Qf2+ 45. Kh1 Qf1+ 46. Kh2 Qf2+ 47. Kh1 g5 48. Rf3 Qa7 49. Bb3 f5 50. Be6 Kh6 51. Bxf5 Qa8 52. d7 Bg3 53. Rd3 Bc7 54. Rh3# 1-0

[Event "Morphy"]
[Site "Gatineau CAN"]
[Date "2025.02.04"]
[Round "4"]
[White "Gagne, Raphael"]
[Black "Blais, Robert"]
[Result "1-0"]
[ECO "A80"]
[WhiteElo "1278"]
[BlackElo "1405"]
[WhiteFideId "-1"]
[WhiteFideId "-1"]
[PlyCount "56"]
[GameId "2143845680485206"]
[EventDate "2025.01.14"]
[EventType "swiss"]
[EventRounds "7"]
[EventCountry "CAN"]
[TimeControl "1"]

1. d4 f5 2. Bf4 d5 3. e3 Nf6 4. Nd2 e6 5. Ngf3 Bd6 6. Bg3 Bxg3 7. hxg3 Nc6 8. c4 Bd7 9. a3 a5 10. Be2 Qe7 11. Ne5 O-O-O 12. Nxd7 Rxd7 13. Qa4 dxc4 14. Nxc4 Nd5 15. Nxa5 Nb6 16. Nxc6 Nxa4 17. Nxe7+ Rxe7 18. b3 Nc3 19. Bd3 g6 20. Kd2 Nd5 21. Rac1 Rd8 22. Rc5 Rd6 23. Rhc1 c6 24. b4 Rc7 25. b5 Kd7 26. Bc4 b6 27. Rxc6 Rcxc6 28. bxc6+ Rxc6 1-0